bitfinex-derivatives/quotes_BNBF0:USTF0_20250305
["timestamp","ask_amount","ask_price","bid_price","bid_amount"]
[1741136796133,0.31573986,582.73,581.37,1.28258476]
[1741136796331,0.3432239,582.71,581.37,1.28258476]
[1741136796640,0.31573986,582.7,581.37,1.62659975]
[1741136797038,0.34323568,582.69,581.37,1.62659975]
[1741136797239,0.31573986,582.68,581.37,1.62659975]
[1741136797739,0.34324746,582.67,581.37,1.62659975]
[1741136797941,0.31573986,582.66,581.37,0.34401499]
[1741136798134,0.34325924,582.65,581.37,0.34401499]
[1741136798340,0.31573986,582.64,581.37,0.34401499]
[1741136798540,0.34327102,582.63,581.37,0.34401499]
[1741136798735,0.31573986,582.62,581.37,0.34401499]
[1741136798938,0.34328281,582.61,581.37,0.34401499]
[1741136799140,0.31573986,582.6,581.37,0.34401499]
[1741136799341,0.34329459,582.59,581.37,0.34401499]
[1741136799542,0.31573986,582.58,581.37,0.34401499]
[1741136800440,0.31573986,582.58,581.38,1.28258476]
[1741136800638,0.34329459,582.59,581.39,0.34400316]
[1741136800844,0.31571151,582.58,581.39,0.34400316]
[1741136801939,0.34329459,582.59,581.39,0.34400316]
[1741136802343,0.34329459,582.59,581.48,1.28258476]
[1741136804341,0.34329459,582.59,581.55,1.28258476]
[1741136805947,0.879,582.58,581.56,0.3439026]
[1741136816749,0.879,582.58,581.61,1.28258476]
[1741136816952,0.879,582.58,581.62,0.34386712]
[1741136827253,0.31566684,582.57,581.83,1.28258476]
[1741136827855,0.31566684,583.14,581.83,1.28258476]
[1741136828054,1.01648697,583.15,581.83,1.28258476]
[1741136828055,0.31566715,583.13,581.83,1.28258476]
[1741136828256,0.31566715,583.12,581.83,1.28258476]
[1741136828456,0.34299434,583.1,581.83,1.28258476]
[1741136828756,0.31566715,583.09,581.83,1.28258476]
[1741136829057,0.31566715,583.08,581.83,1.28258476]
[1741136829256,0.31566715,583.07,581.83,1.28258476]
[1741136829556,0.34301787,583.06,581.83,1.28258476]
[1741136829757,0.31570671,583.05,581.83,1.28258476]
[1741136829957,0.31570671,583.04,581.74,1.28258476]
[1741136830257,0.65874223,583.03,581.74,1.28258476]
[1741136830451,0.34304728,583.01,581.74,1.28258476]
[1741136830657,0.31570671,583.0,581.74,1.28258476]
[1741136830858,0.34306494,582.98,581.74,1.28258476]
[1741136831061,0.31570671,582.97,581.74,1.28258476]
[1741136831358,0.34306494,582.98,581.74,1.28258476]
[1741136831556,0.31573386,582.97,581.74,1.28258476]
[1741136831750,0.31573386,582.96,581.74,1.28258476]
[1741136831960,0.31573386,582.95,581.74,1.28258476]
[1741136832256,0.31573386,582.94,581.74,1.28258476]
[1741136832449,1.01854149,582.95,581.61,1.28258476]
[1741136832450,0.31573386,582.93,581.61,1.28258476]
[1741136832654,1.01854149,582.91,581.61,1.28258476]
[1741136832858,1.33427535,582.9,581.61,1.28258476]
[1741136833156,0.34312379,582.88,581.61,1.28258476]
[1741136833356,0.31580997,582.87,581.61,1.28258476]
[1741136833556,1.01854149,582.82,581.61,1.28258476]
[1741136833858,0.31580997,582.81,581.61,1.28258476]
[1741136834157,0.34317678,582.79,581.61,1.28258476]
[1741136834359,0.31580997,582.78,581.61,1.28258476]
[1741136834556,0.31580997,582.77,581.61,1.28258476]
[1741136834753,0.34320034,582.75,581.49,1.28258476]
[1741136834950,0.31585782,582.74,581.49,1.28258476]
[1741136835152,0.31585782,582.73,581.49,1.28258476]
[1741136835353,0.31587787,582.72,581.49,1.28258476]
[1741136835553,0.31587787,582.71,581.49,1.28258476]
[1741136835759,0.31587787,582.7,581.49,1.28258476]
[1741136835959,0.31587787,582.69,581.49,1.28258476]
[1741136836159,0.34324746,582.67,581.49,1.28258476]
[1741136836358,0.31587787,582.66,581.49,1.28258476]
[1741136836553,0.31589456,582.65,581.49,1.28258476]
[1741136836758,0.34327102,582.63,581.49,1.28258476]
[1741136837059,0.31589456,582.62,581.49,1.28258476]
[1741136837258,0.3432887,582.6,581.49,1.28258476]
[1741136837455,0.31589456,582.59,581.49,1.28258476]
[1741136837660,0.31589456,582.59,581.42,1.28338366]
[1741136837661,0.34330638,582.57,581.18,1.28258476]
[1741136837961,0.31589456,582.56,581.19,0.34412154]
[1741136838161,0.31586681,582.55,581.19,0.34412154]
[1741136838358,0.31586681,582.54,581.19,0.34412154]
[1741136838562,0.34330638,582.57,581.19,0.34412154]
[1741136838563,0.31586681,582.56,581.19,0.34412154]
[1741136838860,0.31586681,582.55,581.19,0.34412154]
[1741136839161,0.65919087,582.54,581.19,0.34412154]
[1741136839361,0.65919676,582.53,581.19,0.34412154]
[1741136839561,0.65920266,582.52,581.19,1.6267063]
[1741136839762,0.65920855,582.51,581.19,1.6267063]
[1741136840061,0.65918334,582.5,581.19,1.6267063]
[1741136840261,0.65918924,582.49,581.19,1.6267063]
[1741136840461,0.65919513,582.48,581.19,1.6267063]
[1741136840660,0.65920103,582.47,581.19,1.6267063]
[1741136840856,0.31583571,582.46,581.19,1.6267063]
[1741136841354,0.34336532,582.47,581.19,1.6267063]
[1741136842163,0.34336532,582.47,581.19,0.34412154]
[1741136842555,0.31577885,582.46,581.19,0.34412154]
[1741136842960,0.34336532,582.47,581.19,0.34412154]
[1741136843561,0.34336532,582.47,581.2,1.7941227]
[1741136843756,0.34336532,582.47,581.21,0.3441097]
[1741136848072,1.321,582.46,581.21,0.3441097]
[1741136852673,1.321,582.46,581.5,1.28258476]
[1741136853571,1.321,582.46,581.5,1.62652285]
[1741136854879,1.321,582.46,581.51,0.34393217]
[1741136857778,1.321,582.46,581.56,1.28258476]
[1741136858177,1.321,582.46,581.57,0.34389669]
[1741136860384,1.321,582.46,581.65,1.28258476]
[1741136862683,1.321,582.46,581.59,1.28258476]
[1741136864884,1.321,582.46,581.57,0.34389669]
[1741136868087,4.74893842,583.43,581.57,0.34389669]
[1741136868387,5.0645595,583.42,581.57,0.34389669]
[1741136868587,5.0645595,583.41,581.57,0.34389669]
[1741136868789,5.0645595,583.4,581.57,0.34389669]
[1741136868988,5.0645595,583.39,581.57,0.34389669]
[1741136869191,5.0645595,583.38,581.57,0.34389669]
[1741136869388,5.0645595,583.37,581.57,0.34389669]
[1741136869689,5.0645595,583.36,581.57,0.34389669]
[1741136869890,5.0645595,583.35,581.57,0.34389669]
[1741136870090,5.0645595,583.34,581.57,0.34389669]
[1741136870285,5.06459092,583.33,581.57,0.34389669]
[1741136870487,4.74896984,583.32,581.57,0.34389669]
[1741136870685,1.66181212,583.31,581.57,0.34389669]
[1741136871090,2.90169997,583.31,581.57,0.34389669]
[1741136871292,1.123,583.3,581.57,0.34389669]
[1741136871484,3.77398827,583.3,581.57,0.34389669]
[1741136871689,5.35667011,583.3,581.57,0.34389669]
[1741136871897,1.66181212,583.29,581.57,0.34389669]
[1741136872190,4.88552053,583.29,581.57,0.34389669]
[1741136872389,4.23367011,583.28,581.57,0.34389669]
[1741136872891,0.34290025,583.26,581.57,0.34389669]
[1741136874091,7.80027877,583.26,581.57,0.34389669]
[1741136874391,4.23258261,583.25,581.57,0.34389669]
[1741136874587,0.34291788,583.23,581.57,0.34389669]
[1741136874987,4.57521391,583.23,581.57,0.34389669]
[1741136875389,3.22370841,583.22,581.57,0.34389669]
[1741136875589,0.34293552,583.2,581.57,0.34389669]
[1741136875992,1.01838484,583.18,581.57,0.34389669]
[1741136876287,0.34295905,583.16,581.57,0.34389669]
[1741136876489,0.315666,583.15,581.57,0.34389669]
[1741136876689,0.315666,583.14,581.57,0.34389669]
[1741136876893,0.34298257,583.12,581.57,0.34389669]
[1741136877101,1.01827285,583.09,581.57,0.34389669]
[1741136877299,0.315666,583.08,581.57,0.34389669]
[1741136877500,0.34301787,583.06,581.57,0.34389669]
[1741136877701,0.315666,583.05,581.57,0.34389669]
[1741136878001,0.34303552,583.03,581.57,0.34389669]
[1741136878205,0.315666,583.02,581.57,0.34389669]
[1741136878405,0.315666,583.01,581.57,0.34389669]
[1741136878597,0.315666,583.0,581.57,0.34389669]
[1741136878800,0.315666,582.99,581.57,0.34389669]
[1741136879000,0.315666,582.98,581.57,0.34389669]
[1741136879197,0.315666,582.97,581.57,0.34389669]
[1741136879398,0.315666,582.96,581.57,0.34389669]
[1741136879598,1.01827285,583.01,581.57,0.34389669]
[1741136879803,0.31573567,583.0,581.61,1.28258476]
[1741136880002,0.34306494,582.98,581.61,1.28258476]
[1741136880204,0.31573567,582.97,581.61,1.28258476]
[1741136880503,0.34308259,582.95,581.61,1.28258476]
[1741136880703,0.31573567,582.94,581.61,1.28258476]
[1741136880902,0.34310025,582.92,581.61,1.28258476]
[1741136881105,0.31573567,582.91,581.61,1.28258476]
[1741136881310,0.34311791,582.89,581.61,1.28258476]
[1741136881604,0.31573567,582.88,581.61,1.28258476]
[1741136881798,0.34313557,582.86,581.61,1.28258476]
[1741136882002,0.31573567,582.85,581.61,1.28258476]
[1741136882299,0.34315323,582.83,581.61,1.28258476]
[1741136882603,0.34315323,582.83,581.57,0.34389669]
[1741136882604,0.31573567,582.82,581.62,1.28258476]
[1741136882803,0.31573567,582.81,581.62,1.28258476]
[1741136882997,0.34317678,582.79,581.62,1.28258476]
[1741136883196,0.31573567,582.78,581.62,1.28258476]
[1741136883402,0.34319445,582.76,581.62,1.28258476]
[1741136883602,0.31573567,582.75,581.62,1.28258476]
[1741136883807,0.34321212,582.73,581.62,1.28258476]
[1741136884008,0.31573567,582.72,581.62,1.28258476]
[1741136884200,0.3432239,582.71,581.62,1.28258476]
[1741136884508,0.31573567,582.7,581.62,1.28258476]
[1741136884904,0.34323568,582.69,581.62,1.28258476]
[1741136885106,0.31573567,582.68,581.57,0.34389669]
[1741136886007,0.6589679,582.67,581.57,0.34389669]
[1741136886208,0.65897379,582.66,581.57,0.34389669]
[1741136886409,0.31572044,582.65,581.57,0.34389669]
[1741136886803,0.34326513,582.64,581.57,0.34389669]
[1741136887003,0.31572044,582.63,581.57,0.34389669]
[1741136887505,0.31572044,582.63,581.57,1.62648145]
[1741136887708,0.31571052,582.62,581.57,1.62648145]
[1741136887902,0.31571052,582.63,581.57,1.62648145]
[1741136888107,0.31571052,582.62,581.57,1.62648145]
[1741136888303,0.31571052,582.63,581.57,1.62648145]
[1741136888504,0.31571052,582.62,581.57,1.62648145]
[1741136888708,0.31571052,582.63,581.57,1.62648145]
[1741136888911,0.31571052,582.62,581.57,1.62648145]
[1741136889109,0.31571052,582.63,581.57,1.62648145]
[1741136889409,0.34326513,582.64,581.57,1.62648145]
[1741136890010,0.34326513,582.64,581.72,1.28258476]
[1741136893013,0.34326513,582.64,581.57,0.34389669]
[1741136893014,0.34326513,582.64,581.73,1.28258476]
[1741136896319,0.34326513,582.64,581.8,1.28258476]
[1741136898417,0.31567728,582.63,581.8,1.28258476]
[1741136899015,0.31567728,582.63,581.72,1.28258476]
[1741136899220,0.34326513,582.64,581.72,1.28258476]
[1741136899420,0.3156865,582.63,581.72,1.28258476]
[1741136901020,0.34326513,582.64,581.72,1.28258476]
[1741136901223,0.3156839,582.63,581.72,1.28258476]
[1741136901421,0.3156839,582.63,581.69,1.28258476]
[1741136901613,0.34326513,582.64,581.69,1.28258476]
[1741136903323,0.34326513,582.64,581.74,1.28258476]
[1741136906417,0.34326513,582.64,581.89,1.28258476]
[1741136909526,0.34326513,582.64,581.86,1.28258476]
[1741136911525,0.34326513,582.64,581.89,1.28258476]
[1741136914232,0.34326513,582.64,581.87,1.28258476]
[1741136914732,1.248,582.63,581.87,1.28258476]
[1741136915833,1.248,582.63,581.83,1.28258476]
[1741136920538,1.248,582.63,581.57,0.34389669]
[1741136920539,1.248,582.63,581.93,1.28258476]
[1741136925042,1.248,582.63,582.03,1.28258476]
[1741136927341,1.248,582.63,581.91,1.28258476]
[1741136929739,1.248,582.63,581.92,1.28258476]
[1741136931842,4.21516146,583.07,581.93,1.28258476]
[1741136932148,0.65859096,583.06,581.93,1.28258476]
[1741136932343,0.65859684,583.05,581.93,1.28258476]
[1741136932545,0.65860272,583.04,581.93,1.28258476]
[1741136932742,0.65855135,583.03,581.93,1.28258476]
[1741136932947,0.34303552,583.03,581.93,1.28258476]
[1741136933144,0.31551476,583.02,581.93,1.28258476]
[1741136933943,0.31551476,583.02,582.05,1.28258476]
[1741136934842,0.883,583.01,582.05,1.28258476]
[1741136935046,0.31551476,583.0,582.05,1.28258476]
[1741136935949,0.31551476,583.0,581.61,2.61731029]
[1741136935950,0.31551476,583.0,582.01,1.28258476]
[1741136936150,0.3155043,582.99,582.01,1.28258476]
[1741136936350,0.3155043,582.98,582.01,1.28258476]
[1741136936550,0.883,583.01,582.01,1.28258476]
[1741136936748,0.31549639,583.0,582.01,1.28258476]
[1741136938352,0.883,583.01,582.01,1.28258476]
[1741136941359,0.883,583.01,582.19,1.28258476]
[1741136943459,0.883,583.01,582.16,1.28258476]
[1741136945860,0.883,583.01,582.27,1.28258476]
[1741136947653,0.883,583.01,582.19,1.28258476]
[1741136951960,4.24006481,583.62,582.19,1.28258476]
[1741136952159,4.96182163,583.62,582.19,1.28258476]
[1741136952460,0.34270047,583.6,582.21,1.28258476]
[1741136952663,0.3153275,583.59,582.22,0.34351276]
[1741136952863,0.34271222,583.58,582.22,0.34351276]
[1741136953261,0.3153275,583.57,582.22,0.34351276]
[1741136954564,0.31524934,583.56,582.22,0.34351276]
[1741136954763,0.31524934,583.55,582.22,0.34351276]
[1741136955064,1.84598505,583.54,582.22,0.34351276]
[1741136955259,0.65799092,583.53,582.22,0.34351276]
[1741136955464,0.31524934,583.52,582.22,0.34351276]
[1741136955666,0.3152467,583.51,582.22,0.34351276]
[1741136955966,0.3152467,583.5,582.22,0.34351276]
[1741136956259,0.3152467,583.49,582.22,0.34351276]
[1741136956465,0.3152467,583.48,582.22,0.34351276]
[1741136956666,0.3152467,583.52,582.22,0.34351276]
[1741136956963,0.3152467,583.51,582.22,0.34351276]
[1741136957261,0.31525802,583.5,582.22,0.34351276]
[1741136957565,0.31525802,583.49,582.22,0.34351276]
[1741136957761,0.31525802,583.52,582.22,0.34351276]
[1741136957958,0.31525802,583.51,582.22,0.34351276]
[1741136958159,0.34274158,583.53,582.22,0.34351276]
[1741136961063,0.34274158,583.53,582.22,1.62609752]
[1741136963968,0.34274158,583.53,582.22,0.34351276]
[1741136964465,0.31519728,583.52,582.22,0.34351276]
[1741136965466,0.34275333,583.51,582.22,0.34351276]
[1741136965664,0.31528616,583.5,582.22,0.34351276]
[1741136965870,0.34276508,583.49,582.22,0.34351276]
[1741136966070,0.31528616,583.48,582.22,0.34351276]
[1741136966467,0.34277683,583.47,582.22,0.34351276]
[1741136966673,0.31528616,583.46,582.22,0.34351276]
[1741136967272,0.31534425,583.45,582.22,0.34351276]
[1741136967570,0.31534425,583.44,582.22,0.34351276]
[1741136967771,0.31534425,583.43,582.22,0.34351276]
[1741136967966,0.31534425,583.42,582.22,0.34351276]
[1741136968168,0.31534425,583.41,582.22,0.34351276]
[1741136968372,0.31534425,583.4,582.22,0.34351276]
[1741136968569,0.31534425,583.46,582.22,0.34351276]
[1741136968775,0.31534425,583.45,582.22,0.34351276]
[1741136969075,0.31534425,583.44,582.22,0.34351276]
[1741136969277,0.34280033,583.43,582.22,0.34351276]
[1741136969474,0.31534425,583.42,582.22,0.34351276]
[1741136969776,0.34281208,583.41,582.22,0.34351276]
[1741136969975,0.31534425,583.4,582.22,0.34351276]
[1741136970276,0.34282383,583.39,582.22,0.34351276]
[1741136970478,0.31533466,583.38,582.22,0.34351276]
[1741136971779,0.34283559,583.37,582.22,0.34351276]
[1741136971979,0.31533466,583.36,582.22,0.34351276]
[1741136972179,0.34284734,583.35,582.22,0.34351276]
[1741136972382,0.31533466,583.34,582.22,0.34351276]
[1741136972783,0.31533466,583.33,582.22,0.34351276]
[1741136973082,0.31533466,583.32,582.22,0.34351276]
[1741136973277,0.34284734,583.35,582.22,0.34351276]
[1741136973483,0.31539731,583.34,582.22,0.34351276]
[1741136973782,0.65825641,583.33,582.22,0.34351276]
[1741136973978,0.34286497,583.32,582.22,0.34351276]
[1741136974179,0.315398,583.31,582.22,0.34351276]
[1741136975478,0.34287673,583.3,582.22,0.34351276]
[1741136975680,0.315398,583.29,582.22,0.34351276]
[1741136976385,0.34288849,583.28,582.22,0.34351276]
[1741136976579,0.315398,583.27,582.22,0.34351276]
[1741136976879,4.73494311,583.61,582.22,0.34351276]
[1741136976880,0.65829825,583.26,582.22,0.34351276]
[1741136977085,0.65830412,583.25,582.22,0.34351276]
[1741136977286,0.65831,583.24,582.22,0.34351276]
[1741136977587,0.65835375,583.23,582.22,0.34351276]
[1741136977777,0.31543587,583.22,582.22,0.34351276]
[1741136977982,0.34292964,583.21,582.22,0.34351276]
[1741136978179,0.31543587,583.2,582.07,1.28258476]
[1741136978378,0.3429414,583.19,581.8,1.28258476]
[1741136978584,0.31543587,583.18,581.81,0.34375483]
[1741136979085,0.65844594,583.17,581.81,0.34375483]
[1741136979287,0.65845183,583.16,581.81,0.34375483]
[1741136979485,0.65845771,583.15,581.81,0.34375483]
[1741136979683,0.34297081,583.14,581.81,0.34375483]
[1741136986483,1.351,583.13,581.81,0.34375483]
[1741136986787,0.34298257,583.12,581.81,0.34375483]
[1741136989188,0.31552486,583.11,581.81,0.34375483]
[1741136989988,0.31552486,583.1,581.81,0.34375483]
[1741136990188,0.31552486,583.09,581.81,0.34375483]
[1741136990393,0.65853096,583.08,581.81,0.34375483]
[1741136990593,0.65853684,583.07,581.81,0.34375483]
[1741136990788,0.65854273,583.06,581.81,0.34375483]
[1741136990993,0.31558489,583.05,581.81,0.34375483]
[1741136991192,0.31558489,583.04,581.81,0.34375483]
[1741136991393,0.31558489,583.03,581.81,0.34375483]
[1741136991594,0.31558489,583.02,581.81,0.34375483]
[1741136991895,0.31558489,583.01,581.81,0.34375483]
[1741136992095,0.34301787,583.06,581.81,0.34375483]
[1741136992096,0.31558489,583.0,581.81,0.34375483]
[1741136992295,0.31558489,583.05,581.81,0.34375483]
[1741136992491,0.34302963,583.04,581.81,0.34375483]
[1741136992794,0.31558489,583.03,581.81,0.34375483]
[1741136992996,0.3430414,583.02,581.81,0.34375483]
[1741136993191,0.31558489,583.01,581.81,0.34375483]
[1741136993396,0.34305317,583.0,581.81,0.34375483]
[1741136993591,0.31558489,582.99,581.81,0.34375483]
[1741136993796,0.34306494,582.98,581.81,0.34375483]
[1741136993996,0.31558489,582.97,581.81,0.34375483]
[1741136994197,0.34307671,582.96,581.81,0.34375483]
[1741136994393,0.31558489,582.95,581.81,0.34375483]
[1741136997299,0.34307671,582.96,581.81,0.34375483]
[1741136998098,0.31548867,582.95,581.81,0.34375483]
[1741136998398,0.34307671,582.96,581.81,0.34375483]
[1741137003000,1.351,583.13,581.81,0.34375483]
[1741137004006,1.351,583.13,581.85,1.28258476]
[1741137004199,0.31541518,583.12,581.85,1.28258476]
[1741137006006,0.31541518,583.12,581.86,0.34372529]
[1741137006211,0.31541518,583.12,582.08,1.28258476]
[1741137007506,1.351,583.13,582.08,1.28258476]
[1741137007702,0.31545109,583.12,582.08,1.28258476]
[1741137008802,0.31545109,583.12,582.0,1.28338366]
[1741137008803,0.31545109,583.12,582.14,1.28258476]
[1741137010409,0.34298845,583.11,582.02,1.28258476]
[1741137010615,0.31545109,583.1,582.02,1.28258476]
[1741137010915,0.34300022,583.09,582.02,1.28258476]
[1741137011409,0.31545871,583.08,582.02,1.28258476]
[1741137011616,0.34300022,583.09,582.02,1.28258476]
[1741137012109,0.31544294,583.08,582.02,1.28258476]
[1741137012302,0.34300022,583.09,582.02,1.28258476]
[1741137012703,0.31544659,583.08,582.02,1.28258476]
[1741137012903,0.31544659,583.08,582.03,1.28258476]
[1741137013303,0.34300022,583.09,582.03,1.28258476]
[1741137014710,0.34300022,583.09,582.04,0.34361899]
[1741137015505,0.34300022,583.09,582.21,1.28258476]
[1741137017410,0.34300022,583.09,582.11,1.28258476]
[1741137018610,0.863,583.08,582.11,1.28258476]
[1741137019812,0.863,583.08,582.12,0.34357177]
[1741137026316,0.863,583.08,582.23,1.28258476]
[1741137026719,0.863,583.08,582.24,0.34350096]
[1741137032422,0.863,583.08,582.25,1.28258476]
[1741137034433,0.863,583.08,582.3,1.28258476]
[1741137036527,0.863,583.08,582.32,1.28258476]
[1741137038327,0.863,583.08,582.35,1.28258476]
[1741137040730,0.863,583.08,582.32,1.28258476]
[1741137043428,0.863,583.08,582.24,0.34350096]
[1741137047039,0.863,583.08,582.3,1.28258476]
[1741137048339,0.863,583.08,582.35,1.28258476]
[1741137050742,0.863,583.08,582.26,1.28338366]
[1741137050743,0.863,583.08,582.58,1.28258476]
[1741137051139,4.24119871,583.96,582.58,1.28258476]
[1741137051342,0.34250094,583.94,582.58,1.28258476]
[1741137051538,0.31527973,583.93,582.58,1.28258476]
[1741137051744,0.34251853,583.91,582.58,1.28258476]
[1741137052045,0.31527973,583.9,582.58,1.28258476]
[1741137052245,0.34253613,583.88,582.58,1.28258476]
[1741137052446,0.31527973,583.87,582.58,1.28258476]
[1741137052647,0.34255373,583.85,582.58,1.28258476]
[1741137052845,0.34255373,583.85,582.24,0.34350096]
[1741137052846,0.31527973,583.84,582.28,1.28258476]
[1741137053042,0.34257134,583.82,582.28,1.28258476]
[1741137053247,0.31527973,583.81,582.28,1.28258476]
[1741137053453,0.34258894,583.79,582.28,1.28258476]
[1741137053854,0.31530517,583.78,582.28,1.28258476]
[1741137054353,0.34260655,583.76,582.28,1.28258476]
[1741137054549,0.31530517,583.75,582.28,1.28258476]
[1741137054753,0.34262415,583.73,582.28,1.28258476]
[1741137054954,0.31530517,583.72,582.31,1.28258476]
[1741137055455,0.34264176,583.7,582.31,1.28258476]
[1741137055653,0.31530517,583.69,582.31,1.28258476]
[1741137056050,0.34265937,583.67,582.31,1.28258476]
[1741137056359,0.31530517,583.66,582.31,1.28258476]
[1741137058155,0.31530517,583.66,582.24,0.34350096]
[1741137058156,0.31530517,583.66,582.32,1.28258476]
[1741137060350,0.34267699,583.64,582.32,1.28258476]
[1741137060650,0.31528854,583.63,582.32,1.28258476]
[1741137060856,0.34268873,583.62,582.55,1.28258476]
[1741137061154,0.31528854,583.61,582.55,1.28258476]
[1741137061655,0.34268873,583.62,582.55,1.28258476]
[1741137061854,0.31527131,583.61,582.55,1.28258476]
[1741137062854,0.31527131,583.61,582.24,0.34350096]
[1741137062855,0.31527131,583.61,582.53,1.28258476]
[1741137063051,0.34270047,583.6,582.53,1.28258476]
[1741137063254,0.31527131,583.59,582.53,1.28258476]
[1741137063451,0.34271222,583.58,582.53,1.28258476]
[1741137063656,0.31527131,583.57,582.53,1.28258476]
[1741137064055,0.34272397,583.56,582.53,1.28258476]
[1741137064251,0.31527131,583.55,582.53,1.28258476]
[1741137064854,0.34272397,583.56,582.53,1.28258476]
[1741137065050,0.31522615,583.55,582.53,1.28258476]
[1741137065455,0.31522615,583.55,582.56,1.28258476]
[1741137066456,0.65795599,583.55,582.56,1.28258476]
[1741137066657,0.31522615,583.54,582.56,1.28258476]
[1741137066959,0.34272984,583.55,582.56,1.28258476]
[1741137067868,0.34272984,583.55,582.57,1.28258476]
[1741137071166,0.34272984,583.55,582.6,1.28258476]
[1741137072463,1.3,583.54,582.6,1.28258476]
[1741137074068,1.3,583.54,582.24,0.34350096]
[1741137075566,1.3,583.54,582.27,1.28258476]
[1741137075766,1.3,583.54,582.29,0.34347146]
[1741137077667,1.3,583.54,582.55,1.28258476]
[1741137079971,1.3,583.54,582.25,1.7910755]
[1741137082175,1.3,583.54,582.44,1.28258476]
[1741137084078,0.31519808,583.53,582.44,1.28258476]
[1741137084273,1.3,583.54,582.45,1.28258476]
[1741137084785,0.31521954,583.53,582.45,1.28258476]
[1741137086875,0.31521954,583.53,582.43,1.28258476]
[1741137087476,1.3,583.54,582.43,1.28258476]
[1741137087677,0.31526309,583.53,582.43,1.28258476]
[1741137089182,0.31526309,583.53,582.42,1.28258476]
[1741137090879,0.31526945,583.52,582.42,1.28258476]
[1741137091078,0.31526945,583.53,582.42,1.28258476]
[1741137091389,0.31526945,583.52,582.53,1.28258476]
[1741137091785,0.31526945,583.51,582.53,1.28258476]
[1741137091982,0.31526945,583.53,582.53,1.28258476]
[1741137092190,0.31526945,583.52,582.53,1.28258476]
[1741137092391,0.31526945,583.53,582.53,1.28258476]
[1741137092585,1.3,583.54,582.53,1.28258476]
[1741137092787,0.31525871,583.53,582.53,1.28258476]
[1741137093386,1.3,583.54,582.53,1.28258476]
[1741137094182,1.3,583.54,582.32,1.79117537]
[1741137095390,1.3,583.54,582.23,1.28258476]
[1741137096592,1.3,583.54,582.35,1.28258476]
[1741137098690,1.3,583.54,582.69,1.28258476]
[1741137098991,0.31518938,583.53,582.69,1.28258476]
[1741137099387,4.76587675,583.88,582.69,1.28258476]
[1741137099587,5.08142251,583.87,582.69,1.28258476]
[1741137099790,5.08142251,583.86,582.69,1.28258476]
[1741137099991,5.08142251,583.85,582.69,1.28258476]
[1741137100191,1.98425391,583.84,582.69,1.28258476]
[1741137100495,0.31519402,583.83,582.69,1.28258476]
[1741137100686,0.31519402,583.82,582.69,1.28258476]
[1741137100887,0.31519402,583.81,582.69,1.28258476]
[1741137101086,0.31519402,583.8,582.69,1.28258476]
[1741137101289,0.31519402,583.79,582.73,1.28258476]
[1741137101490,0.31519402,583.78,582.73,1.28258476]
[1741137101687,0.31519402,583.81,582.73,1.28258476]
[1741137101893,0.31519402,583.8,582.73,1.28258476]
[1741137102086,5.80267659,583.81,582.73,1.28258476]
[1741137102287,1.98425391,583.8,582.73,1.28258476]
[1741137102489,0.31519402,583.79,582.73,1.28258476]
[1741137102688,6.56712585,583.79,582.73,1.28258476]
[1741137102891,4.56682004,583.78,582.73,1.28258476]
[1741137103189,0.31519402,583.77,582.63,1.28258476]
[1741137103394,7.79369198,583.77,582.63,1.28258476]
[1741137103694,4.56682004,583.76,582.63,1.28258476]
[1741137103895,0.31519402,583.75,582.63,1.28258476]
[1741137104291,3.54206596,583.75,582.63,1.28258476]
[1741137104493,1.30848868,583.74,582.63,1.28258476]
[1741137104693,0.31519402,583.73,582.63,1.28258476]
[1741137105588,1.356,583.79,582.63,1.28258476]
[1741137105589,0.31519402,583.78,582.63,1.28258476]
[1741137105786,0.31519402,583.77,582.63,1.28258476]
[1741137106095,0.31519402,583.76,582.63,1.28258476]
[1741137106293,0.31519402,583.78,582.63,1.28258476]
[1741137106495,0.31519402,583.77,582.63,1.28258476]
[1741137106697,0.31519402,583.78,582.63,1.28258476]
[1741137106995,0.31519402,583.77,582.63,1.28258476]
[1741137107289,0.31519402,583.78,582.63,1.28258476]
[1741137107496,0.31519402,583.77,582.63,1.28258476]
[1741137107691,0.31519402,583.76,582.63,1.28258476]
[1741137107895,0.31519402,583.78,582.63,1.28258476]
[1741137108099,0.31519402,583.77,582.63,1.28258476]
[1741137108395,0.31519402,583.76,582.61,1.28258476]
[1741137108596,0.31519402,583.78,582.61,1.28258476]
[1741137108795,0.31519402,583.77,582.61,1.28258476]
[1741137108991,0.31519402,583.78,582.61,1.28258476]
[1741137109198,0.6577947,583.77,582.61,1.28258476]
[1741137109497,0.34260068,583.77,582.61,1.28258476]
[1741137109696,0.31516512,583.76,582.61,1.28258476]
[1741137111297,0.31516512,583.76,582.68,1.28258476]
[1741137112993,0.3151117,583.75,582.68,1.28258476]
[1741137113192,0.3151117,583.74,582.68,1.28258476]
[1741137113396,0.3151117,583.73,582.68,1.28258476]
[1741137113596,0.3151117,583.76,582.77,1.28258476]
[1741137113901,0.3151117,583.75,582.77,1.28258476]
[1741137114096,0.3151117,583.74,582.77,1.28258476]